Cogmind - Beta 9.6 @@@ ROGUE MODE // 2020.06.07 @ 14:10:27 Player: aoemica Result: Destroyed by H-88 Terminator with Heavy Machine Gun Performance ------------- Evolutions (8) 4000 Regions Visited (24) 4800 Robots Destroyed (261) 1305 Value Destroyed (13681) 13681 Prototype IDs (54) 1080 Alien Tech Used (0) 0 Bonus (9397) 9397 TOTAL SCORE: 34263 Bonus ------- High Alert Combat Kills 595 Follower Combat Kills 5019 Entered Garrisons 1200 Used RIF Installer 3000 Aligned with FarCom 300 Friendly Fire -717 Cogmind --------- Core Integrity 0/1450 Matter 71/300 Energy 100/100 System Corruption 20% Temperature Cool (0) Movement Core (300) Ox5 Location -2/Research Parts ------- > --- POWER (1) -------- (None) > --- PROPULSION (4) --- (None) > --- UTILITY (16) ----- Large Storage Unit Enhanced Optical Array Advanced Target Analyzer Advanced Target Analyzer Relay Coupler [Grunt] (13) Relay Coupler [Behemoth] (1) > --- WEAPON (2) ------- (None) > --- INVENTORY (10) --- Light Antimatter Reactor Particle Reactor Advanced Heat Sink Relay Coupler [NC] (24) Improved Lightning Gun Guided Plasma Cannon Enhanced Nova Cannon Improved Remote Datajack Advanced Remote Datajack Power Sword Peak State ------------ > --- POWER ------------ Light Particle Reactor > --- PROPULSION ------- Armored Wheel Armored Wheel Centrium Wheel High-density Centrium Wheel > --- UTILITY ---------- Advanced Heat Sink Advanced Heat Sink Advanced Heat Sink Advanced Coolant Injector Large Storage Unit Large Storage Unit Large Storage Unit Large Storage Unit Enhanced Optical Array Improved Targeting Computer Improved Melee Analysis Suite Advanced Target Analyzer Advanced Target Analyzer Relay Coupler [Swarmer] Relay Coupler [Grunt] Relay Coupler [Behemoth] > --- WEAPON ----------- Enhanced Nova Cannon Fusion Bomb Launcher > --- INVENTORY -------- Light Antimatter Reactor Particle Reactor Particle Reactor Experimental Power Amplifier Advanced Heat Sink Advanced Heat Sink Advanced Heat Sink Relay Coupler [NC] Improved Lightning Gun Gamma Rifle Gamma Rifle Guided Plasma Cannon Enhanced Nova Cannon Heavy Gauss Cannon Fusion Bomb Launcher Improved Remote Datajack Improved Remote Datajack Advanced Remote Datajack Advanced Remote Datajack Advanced Remote Datajack Power Sword Nanosword Nanosword Nanosword [Rating: 124] Favorites ----------- Power Improved Deuterium Engine Engine Improved Deuterium Engine Power Core Reinforced Fission Core Reactor Quantum Reactor Propulsion Armored Wheel Treads Light Treads Leg Aluminum Leg Wheel Armored Wheel Utility Large Storage Unit Device Improved Cooling System Storage Large Storage Unit Processor Advanced Targeting Computer Hackware Relay Coupler [Swarmer] Protection Hardened Medium Armor Plating Weapon Improved Remote Datajack Energy Gun EM Shotgun Energy Cannon Advanced Plasma Cannon Ballistic Gun KE Penetrator Ballistic Cannon Improved Light Cannon Launcher Grenade Launcher Special Weapon Improved Remote Datajack Slashing Weapon Power Sword Build | -11 -10 -10 -9 -9 -9 -8 -8 -8 -7 -7 -7 -7 -7 -7 -6 -6 -5 -5 -5 -5 -4 -4 -3 -2 ------- Run | Scr Mat Min Mat Min Exi Min Mat Gar Fac Was Fac Gar Fac Gar Fac Gar Fac Gar Fac Gar Fac Arm Res Res Slots Evolved 16 | . . . 2 . . . 2 . 2 . . . . . 2 . 2 . . . 2 . 2 2 Power . | . . . . . . . . . . . . . . . . . . . . . . . . . Propulsion 2 | . . . . . . . 1 . . . . . . . . . 1 . . . . . . . Utility 14 | . . . 2 . . . 1 . 2 . . . . . 2 . 1 . . . 2 . 2 2 Weapon . | . . . . . . . . . . . . . . . . . . . . . . . . . Parts Attached 422 | 7 14 . 11 . . 10 30 16 17 . 51 23 9 19 6 15 17 27 40 23 15 21 28 23 Power 23 | 1 1 . 1 . . . 1 2 1 . 2 . 1 . . 1 2 . 3 2 2 1 2 . Engine 9 | 1 1 . . . . . . 2 1 . 2 . 1 . . 1 . . . . . . . . Core 10 | . . . 1 . . . 1 . . . . . . . . . 2 . 3 2 1 . . . Reactor 4 | . . . . . . . . . . . . . . . . . . . . . 1 1 2 . Propulsion 63 | 2 2 . 4 . . 2 9 4 3 . 7 2 1 . . . 3 5 5 4 . 1 3 6 Treads 7 | . . . . . . . . 3 . . 3 . . . . . . 1 . . . . . . Leg 18 | 2 2 . 4 . . 2 8 . . . . . . . . . . . . . . . . . Wheel 38 | . . . . . . . 1 1 3 . 4 2 1 . . . 3 4 5 4 . 1 3 6 Hover . | . . . . . . . . . . . . . . . . . . . . . . . . . Flight . | . . . . . . . . . . . . . . . . . . . . . . . . . Utility 166 | 2 2 . 2 . . . 9 2 5 . 18 6 4 11 5 11 9 17 20 13 11 5 11 3 Device 50 | . . . . . . . 1 . 2 . 12 2 1 6 2 2 5 3 3 2 2 1 5 1 Storage 15 | 1 1 . 1 . . . 3 . 1 . 3 . . . 1 . . . . 3 . . 1 . Processor 8 | 1 . . 1 . . . . . . . . . . . . . . 1 . . . . 3 2 Hackware 51 | . 1 . . . . . . . 1 . 3 4 2 4 1 7 4 6 7 4 5 2 . . Protection 42 | . . . . . . . 5 2 1 . . . 1 1 1 2 . 7 10 4 4 2 2 . Artifact . | . . . . . . . . . . . . . . . . . . . . . . . . . Weapon 170 | 2 9 . 4 . . 8 11 8 8 . 24 15 3 8 1 3 3 5 12 4 2 14 12 14 Energy Gun 28 | 2 8 . 1 . . 4 3 1 . . 1 1 . . . . . . . . . . 3 4 Energy Cannon 44 | . . . . . . . 2 2 1 . 5 4 1 1 . 1 2 3 6 1 1 7 4 3 Ballistic Gun 23 | . . . 2 . . 2 1 2 3 . 3 4 . 4 . . . . 1 1 . . . . Ballistic Cannon 11 | . . . . . . . 3 1 1 . 3 1 . . . . . . . . . . 2 . Launcher 22 | . 1 . 1 . . 2 1 2 . . 3 1 . 1 . 1 . 2 . . . 5 . 2 Special Weapon 29 | . . . . . . . . . . . 5 4 2 2 1 1 1 . 5 2 . 1 3 2 Impact Weapon . | . . . . . . . . . . . . . . . . . . . . . . . . . Slashing Weapon 13 | . . . . . . . 1 . 3 . 4 . . . . . . . . . 1 1 . 3 Piercing Weapon . | . . . . . . . . . . . . . . . . . . . . . . . . . Special Melee Weapon . | . . . . . . . . . . . . . . . . . . . . . . . . . Unidentified Prototypes 9 | . . . 1 . . . . . . . 1 1 . . . . 1 . 1 . 1 . 1 2 Parts Lost 78 | . 2 . 1 . . 3 2 5 4 2 6 1 1 . . . 5 1 4 1 . 3 13 24 Power 6 | . 1 . 1 . . . . . . . . . 1 . . . . . . . . . 2 1 Propulsion 24 | . . . . . . 1 2 2 2 . 3 1 . . . . 1 . 2 . . . 1 9 Utility 28 | . . . . . . . . 1 1 2 . . . . . . 3 1 2 . . 3 5 10 Weapon 20 | . 1 . . . . 2 . 2 1 . 3 . . . . . 1 . . 1 . . 5 4 Highest Loss Streak 18 | . 1 . 1 . . 2 1 2 3 2 3 1 1 . . . 4 1 3 1 . 2 4 18 Average Slot Usage (%) 93 | . 99 100 96 100 100 99 99 97 96 86 96 91 91 91 91 89 89 87 97 93 93 92 91 90 Engine 3 | . 14 14 3 . . . . 7 7 7 7 7 6 7 6 6 . . . . . . . . Core 2 | . . . 6 11 11 11 8 1 . . . . . . . . 4 5 5 5 2 1 . . Treads 1 | . . . . . . . . 15 11 . 10 . . . . . . . . . . . . . Leg 4 | . 27 28 22 22 22 21 26 9 . . . . . . . . . . . . . . . . Wheel 11 | . . . . . . . . . 10 19 8 14 15 15 13 13 15 15 20 17 15 15 13 11 Device 7 | . . . . . . . . 9 8 7 18 8 2 6 6 2 7 13 4 6 5 8 11 15 Storage 19 | . 14 14 21 22 22 22 17 18 17 23 23 23 23 23 20 20 17 17 17 17 15 15 18 16 Processor 5 | . . . 8 11 11 11 9 9 7 7 7 7 7 7 6 6 5 5 3 . . . 6 20 Hackware 13 | . 13 14 11 11 11 11 9 . 1 . 3 12 19 11 18 20 19 11 21 20 21 26 20 12 Protection 5 | . . . . . . . 8 9 14 8 . . . 3 5 5 4 3 9 11 18 8 5 . Energy Gun 2 | . 27 28 10 11 11 6 4 2 2 . . . . . . . . . . . . . . 2 Energy Cannon 4 | . . . . . . . 4 5 2 3 6 5 6 6 6 6 5 4 4 4 5 4 3 1 Ballistic Gun 2 | . . . 11 11 11 13 5 4 4 7 1 4 3 4 . . . . . . . . . . Special Weapon 2 | . . . . . . . . . . . 1 1 4 2 5 5 5 5 4 5 5 5 1 . Naked Turns . | . . . . . . . . . . . . . . . . . . . . . . . . . Heaviest Build 128 | 13 27 27 37 37 37 37 54 58 79 78 76 78 78 82 81 83 93 101 98 94 110 109 128 108 Greatest Support 68 | 20 20 20 20 20 20 25 38 60 60 42 68 40 40 40 40 40 52 56 52 56 52 56 60 60 Greatest Overweight (x) 4 | . 1 1 1 1 1 3 2 3 4 1 4 2 1 2 2 2 3 3 3 1 2 2 3 3 Average Overweight (x) 1 | . . 1 1 1 1 1 1 . 1 1 1 1 1 1 1 1 1 1 1 1 1 1 1 1 Largest Inventory Capacity 28 | 6 10 10 14 14 14 14 16 16 20 20 22 22 22 22 22 22 22 22 22 22 22 22 28 28 Average Capacity 20 | 5 6 10 13 14 14 14 15 16 17 20 21 22 22 22 22 22 22 22 22 22 22 22 27 27 Most Carried 26 | 6 10 10 14 13 14 14 16 16 20 20 22 22 22 22 22 22 22 22 22 22 22 22 26 26 Average Carried 19 | 4 6 10 13 13 13 12 15 15 16 20 20 21 21 21 21 20 21 20 21 21 21 21 20 23 Final Capacity 28 | 6 10 10 14 14 14 14 16 16 20 20 22 22 22 22 22 22 22 22 22 22 22 22 28 10 Final Carried 26 | 6 10 10 13 13 14 14 16 16 20 20 22 22 21 22 22 22 19 22 22 22 22 20 26 10 Class Distribution -------------------- 36% | Botlord-Mutant 31% | Bothacker-Mutant 14% | Scavenger-Mutant 12% | Mutant Dominant Class ---------------- Mutant | -10/Materials Mutant | -10/Mines Mutant | -9/Materials Mutant | -9/Mines Mutant | -9/Exiles Mutant | -8/Mines Scavenger-Mutant | -8/Materials Scavenger-Mutant | -8/Garrison Bothacker-Mutant | -7/Factory Bothacker-Mutant | -7/Waste Hauler-Skirmisher | -7/Factory Bothacker-Mutant | -7/Garrison Bothacker-Mutant | -7/Factory Bothacker-Mutant | -7/Garrison Bothacker-Mutant | -6/Factory Bothacker-Mutant | -6/Garrison Botlord-Mutant | -5/Factory Botlord-Mutant | -5/Garrison Botlord-Mutant | -5/Factory Botlord-Mutant | -5/Garrison Botlord-Mutant | -4/Factory Botlord-Mutant | -4/Armory Bothacker-Mutant | -3/Research Scavenger-Mutant | -2/Research Resources | -11 -10 -10 -9 -9 -9 -8 -8 -8 -7 -7 -7 -7 -7 -7 -6 -6 -5 -5 -5 -5 -4 -4 -3 -2 ----------- Run | Scr Mat Min Mat Min Exi Min Mat Gar Fac Was Fac Gar Fac Gar Fac Gar Fac Gar Fac Gar Fac Arm Res Res Matter Collected 8213 | 270 171 58 236 . . 212 632 403 439 . 942 539 127 420 105 317 242 494 615 513 248 556 437 237 Remotely . | . . . . . . . . . . . . . . . . . . . . . . . . . Salvage Created 11911 | 86 459 36 382 . . 406 944 589 995 . 1575 446 141 566 169 411 208 879 489 1054 95 534 774 673 Parts 574 | 3 43 1 27 . . 18 54 47 51 . 61 20 4 16 5 14 14 24 32 24 7 26 51 32 Haulers Intercepted 9 | . 1 . 1 . . . 1 . 1 . 3 . 1 . 1 . . . . . . . . . Recyclers Shooed 16 | . . . . . . . 1 . 3 . 5 . . . 1 . 1 . 1 . 2 . . 2 Parts Field Recycled . | . . . . . . . . . . . . . . . . . . . . . . . . . Retrieved Matter . | . . . . . . . . . . . . . . . . . . . . . . . . . Parts Self-Destructed . | . . . . . . . . . . . . . . . . . . . . . . . . . Prevented . | . . . . . . . . . . . . . . . . . . . . . . . . . Kills | -11 -10 -10 -9 -9 -9 -8 -8 -8 -7 -7 -7 -7 -7 -7 -6 -6 -5 -5 -5 -5 -4 -4 -3 -2 ------- Run | Scr Mat Min Mat Min Exi Min Mat Gar Fac Was Fac Gar Fac Gar Fac Gar Fac Gar Fac Gar Fac Arm Res Res Combat Hostiles Destroyed 191 | . 16 2 8 . . 9 16 24 13 . 12 12 . 11 1 8 3 6 7 4 . 9 13 17 Guns 53 | . 14 2 4 . . 4 7 5 9 . 2 3 . 1 . . . . . . . . 1 1 Cannons 90 | . . . . . . . 8 13 2 . 8 6 . 5 1 7 3 5 6 4 . 8 11 3 AOE 44 | . 2 . 4 . . 4 1 6 2 . 1 3 . 5 . 1 . 1 1 . . 1 . 12 Classes Destroyed 17 | 2 7 . 3 . . . . 2 2 . . 1 . . . . . . . . . . . . Worker 8 | . 2 . . . . . 1 . 2 . 1 . . . . . . . . . 1 . . 1 Builder 11 | . 1 . 2 . . . 1 . . . 2 . . . . . . . 1 . . . . 4 Tunneler 2 | 1 . . . . . . 1 . . . . . . . . . . . . . . . . . Hauler 9 | . 1 . 1 . . . 1 . 1 . 3 . 1 . 1 . . . . . . . . . Recycler 23 | 1 . . . . . 2 3 . 6 . 9 . 1 . . . . . . . . . . 1 Operator 2 | . 1 . 1 . . . . . . . . . . . . . . . . . . . . . Watcher 13 | . 1 . 1 . . . 1 . 1 . 5 . . . . . 1 . 3 . . . . . Swarmer 53 | . 12 2 3 . . 3 3 12 1 . . 4 . 3 . 3 . . 1 1 . . 1 4 Grunt 70 | . 4 . 1 . . 5 7 . 7 . 7 5 . 6 . 6 2 5 2 3 . 4 3 3 Brawler 4 | . . . 1 . . . . . . . 2 . . . . . . 1 . . . . . . Duelist 6 | . . . 1 . . 1 1 . . . . . . . 1 . . . 1 . . . . 1 Protector 2 | . . . . . . . . . 1 . . . . . . . . . . . . . . 1 Sentry 20 | . . . 2 . . . 5 9 1 . 1 1 . . . . . . 1 . . . . . Specialist 2 | . . . . . . . . 2 . . . . . . . . . . . . . . . . Hunter 10 | . . . . . . . . 1 1 . . . . . . . 1 . 1 . 1 1 2 2 Programmer 25 | . . . . . . . . . 2 . 2 1 . 2 . . . . 1 . . 4 7 6 Behemoth 1 | . . . . . . . . . . . . 1 . . . . . . . . . . . . Best Kill Streak 15 | 2 4 1 5 . . 3 4 6 8 . 5 3 1 6 1 2 1 2 3 2 1 2 3 15 Combat Bots Only 10 | . 3 1 4 . . 3 3 6 5 . 3 3 . 6 1 2 1 2 1 2 . 2 3 10 Max Kills in Single Turn 4 | 1 2 1 2 . . 2 1 2 2 . 2 3 1 3 1 1 1 1 1 1 1 1 1 4 Gunslinging . | . . . . . . . . . . . . . . . . . . . . . . . . . Exploded 4 | . 1 . 2 . . 2 1 2 2 . 1 3 . 3 . 1 . 1 1 . . 1 . 4 Melee . | . . . . . . . . . . . . . . . . . . . . . . . . . Uniques/NPCs Destroyed . | . . . . . . . . . . . . . . . . . . . . . . . . . Combat | -11 -10 -10 -9 -9 -9 -8 -8 -8 -7 -7 -7 -7 -7 -7 -6 -6 -5 -5 -5 -5 -4 -4 -3 -2 -------- Run | Scr Mat Min Mat Min Exi Min Mat Gar Fac Was Fac Gar Fac Gar Fac Gar Fac Gar Fac Gar Fac Arm Res Res Damage Taken 19360 | . 555 78 473 . . 557 986 1025 1142 55 1307 927 125 261 361 248 752 572 1149 392 425 990 2742 4238 Core 3213 | . 81 14 58 . . 69 171 90 44 . 242 194 14 16 86 28 51 157 107 . 50 69 219 1453 Absorbed by Shields 109 | . . . . . . . . . . . . . . . . . . 24 . 63 . 22 . . Core Remaining (%) 70 | 100 . 62 . . . 68 . 52 . . . . . 27 . 86 . . . 68 . 89 83 . Volleys Fired 1274 | 5 48 8 31 . . 24 59 52 58 . 95 64 18 80 35 61 43 101 106 121 38 102 76 49 Largest 2 | 2 2 2 2 . . 2 2 2 2 . 2 2 2 2 1 1 1 1 1 1 1 1 2 2 Hottest 240 | 90 101 101 68 . . 90 136 107 97 . 117 151 131 131 98 98 98 120 98 98 98 120 240 155 Shots Fired 1666 | 10 92 16 46 . . 46 107 94 108 . 152 99 21 93 35 61 43 103 106 121 38 102 107 66 Gun 491 | 10 88 16 44 . . 42 46 19 65 . 32 48 2 22 . . . . . 3 . . 26 28 Cannon 886 | . . . . . . . 58 71 43 . 109 36 14 59 26 34 32 86 71 75 24 52 76 20 Launcher 49 | . 4 . 2 . . 4 3 4 . . . 1 . 5 . 3 . 3 . . . 9 . 11 Special 240 | . . . . . . . . . . . 11 14 5 7 9 24 11 14 35 43 14 41 5 7 Kinetic 383 | . . . 35 . . 26 58 50 59 . 55 51 2 22 . . . . . 3 . . 14 8 Thermal 847 | 5 60 8 . . . . 28 40 49 . 59 24 14 59 26 34 32 86 68 91 15 52 84 13 Explosive 43 | . 4 . 2 . . 4 3 4 . . . 1 . 5 . 3 . 2 . . . 4 . 11 Electromagnetic 169 | 5 28 8 9 . . 16 18 . . . 27 9 . . . . . 1 3 . 9 5 4 27 Robot Hit Streak 45 | 6 6 4 16 . . 15 18 17 17 . 19 13 17 17 17 22 11 15 16 45 7 10 13 9 Robot Miss Streak 7 | 2 3 3 3 . . 1 7 4 5 . 4 3 1 2 2 1 1 2 2 4 3 4 4 2 Penetration Max . | . . . . . . . . . . . . . . . . . . . . . . . . . Secondary Targets 5 | . 3 . . . . 1 . . 1 . . . . . . . . . . . . . . . Max Gunslinging Chain 1 | . 1 . . . . 1 . . 1 . . . . . . . . . . . . . . . Shots Hit Robots 1118 | 7 45 7 37 . . 41 78 60 84 . 104 59 15 65 18 36 26 79 57 96 26 61 68 49 Core Hits 533 | 3 28 3 20 . . 24 47 31 64 . 61 24 2 29 2 17 5 28 16 29 5 27 21 47 Critical Hits 29 | . . . . . . . 2 3 2 . . 3 . 4 . . . 3 1 5 . 1 3 2 Critical Kills 8 | . . . . . . . . 1 . . . 1 . 1 . . . . . 3 . 1 1 . Critical Parts Destroyed 19 | . . . . . . . 2 2 2 . . 1 . 3 . . . 3 1 1 . . 2 2 Melee Attacks 38 | . . . . . . . 2 . 2 . 6 . . . . . . . . . . 2 7 19 Impact . | . . . . . . . . . . . . . . . . . . . . . . . . . Slashing 38 | . . . . . . . 2 . 2 . 6 . . . . . . . . . . 2 7 19 Piercing . | . . . . . . . . . . . . . . . . . . . . . . . . . Sneak Attacks . | . . . . . . . . . . . . . . . . . . . . . . . . . Combat Hostiles . | . . . . . . . . . . . . . . . . . . . . . . . . . Follow-up Attacks . | . . . . . . . . . . . . . . . . . . . . . . . . . Damage Inflicted 32780 | 99 1085 81 1017 . . 900 1519 1556 2358 . 2837 1325 303 2467 442 895 525 2043 1424 2442 452 2120 2672 4218 Guns 6327 | 99 672 81 558 . . 613 453 177 1159 . 506 447 . 392 . . . . . 30 . . 649 491 Cannons 18088 | . . . . . . . 851 973 685 . 1895 664 303 1486 437 465 525 1943 1242 2152 452 1222 2023 770 Explosions 8034 | . 413 . 459 . . 287 215 406 514 . 436 214 . 589 . 430 . 100 182 . . 898 . 2891 Melee 56 | . . . . . . . . . . . . . . . . . . . . . . . . 56 Ramming 15 | . . . . . . . . . . . . . . . 5 . . . . . . . . 10 Kinetic 5724 | . . . 433 . . 372 718 740 966 . 938 548 . 392 . . . . . 30 . . 283 304 Thermal 17559 | 49 357 57 299 . . . 454 410 1392 . 969 437 303 1486 437 465 525 1943 1187 2412 315 1222 2334 506 Explosive 6756 | . 413 . 160 . . 287 215 406 . . 351 214 . 589 . 430 . 38 182 . . 580 . 2891 Electromagnetic 2670 | 50 315 24 125 . . 241 132 . . . 579 126 . . . . . 62 55 . 137 318 55 451 Impact . | . . . . . . . . . . . . . . . . . . . . . . . . . Slashing 56 | . . . . . . . . . . . . . . . . . . . . . . . . 56 Piercing . | . . . . . . . . . . . . . . . . . . . . . . . . . Highest Corruption 20 | . 3 3 1 1 1 1 . . 1 1 3 . 6 6 . . 10 8 8 . . 6 11 20 Average Corruption 3 | . 2 3 1 1 1 1 . . 1 1 1 . 5 2 . . 8 5 5 . . 4 7 5 Corruption Purged 37 | . . . . . . . . . . . 5 . . 8 . . 2 8 8 . . 6 . . Effects 224 | . 16 12 1 . 2 . . . 3 . 17 . 10 27 . . 7 35 21 . . 13 37 23 Message Errors 58 | . 4 5 . . 1 . . . 1 . 5 . . 11 . . . 6 4 . . 5 9 7 Matter Fused 50 | . 5 2 . . . . . . . . 1 . 3 4 . . 4 13 9 . . 2 4 3 Heat Flow Errors 21 | . 1 1 . . . . . . . . 3 . 1 2 . . 2 4 1 . . . 4 2 Energy Discharges 30 | . 2 2 1 . . . . . 1 . 3 . 3 5 . . . 4 2 . . 3 3 1 Parts Rejected 1 | . . . . . . . . . . . . . . . . . . . . . . . . 1 Data Loss (minor) 30 | . 3 2 . . 1 . . . . . 3 . 2 5 . . 1 5 3 . . 2 . 3 Data Loss (major) 6 | . . . . . . . . . . . . . . . . . . 1 . . . . 5 . Misfires 4 | . . . . . . . . . . . . . 1 . . . . 2 . . . . 1 . Misdirections 4 | . . . . . . . . . . . . . . . . . . . . . . . 3 1 Targeting Errors 17 | . 1 . . . . . . . 1 . 2 . . . . . . . 2 . . 1 5 5 Weapon Failures 3 | . . . . . . . . . . . . . . . . . . . . . . . 3 . Overload Shots 1 | . . . . . . . . . 1 . . . . . . . . . . . . . . . Overflow Damage 914 | . 9 . . . . 15 14 19 121 . 117 . 24 46 5 25 11 33 49 45 . 135 75 171 Projectiles 590 | . . . . . . . 14 . 21 . 47 . 24 39 5 19 11 33 49 45 . 132 75 76 Explosions 292 | . 9 . . . . 15 . 19 100 . 70 . . 7 . 6 . . . . . 3 . 63 Melee 32 | . . . . . . . . . . . . . . . . . . . . . . . . 32 Knockbacks 22 | . . . . . . . 4 4 1 . 3 4 . . . . . . . . . . 2 4 Impact . | . . . . . . . . . . . . . . . . . . . . . . . . . Kinetic 22 | . . . . . . . 4 4 1 . 3 4 . . . . . . . . . . 2 4 Secondary . | . . . . . . . . . . . . . . . . . . . . . . . . . Self-Inflicted Damage 543 | . . . 93 . . . . 12 . . 251 . . . 2 34 . 39 . . . 45 . 67 Shots 13 | . . . 3 . . . . 1 . . 3 . . . . 1 . 1 . . . 2 . 2 Rammed 3 | . . . . . . . . . . . . . . . 1 . . . . . . . . 2 Targets Rammed 3 | . . . . . . . . . . . . . . . 1 . . . . . . . . 2 Kicked . | . . . . . . . . . . . . . . . . . . . . . . . . . Crushed . | . . . . . . . . . . . . . . . . . . . . . . . . . Highest Temperature 273 | 150 273 256 48 . . 174 228 . 135 . 244 144 102 234 . 241 220 209 264 64 159 140 198 105 Average Temperature 63 | 75 75 113 18 . . 47 68 . 50 . 65 41 33 72 . 69 75 88 74 28 26 28 78 58 Received Heat Transfer 3137 | . 120 . 108 . . 225 396 162 504 . 435 159 36 45 18 54 69 112 75 91 57 57 198 216 Effects 1 | . . 1 . . . . . . . . . . . . . . . . . . . . . . Energy Bleed 1 | . . 1 . . . . . . . . . . . . . . . . . . . . . . Siege Activations . | . . . . . . . . . . . . . . . . . . . . . . . . . Robots Corrupted 3 | . . . . . . 1 . . . . 1 . . . . . . . . . . . . 1 Combat Hostiles 3 | . . . . . . 1 . . . . 1 . . . . . . . . . . . . 1 Parts Fried 16 | . . . . . . 1 . . . . 7 . . . . . . . . . . . . 8 Impact Corruptions . | . . . . . . . . . . . . . . . . . . . . . . . . . Robots Melted 4 | . . . . . . . . . . . . . . 1 1 . . 1 . . . . 1 . Combat Hostiles 1 | . . . . . . . . . . . . . . . . . . . . . . . 1 . Parts Melted 23 | . 3 . 3 . . . . . 2 . . . 1 1 2 . . 1 2 2 . 1 5 . Heat Transferred 22050 | 148 1001 148 350 . . . 814 720 1708 . 1372 548 450 2200 650 649 759 2575 1559 2867 333 751 2035 413 Parts Sabotaged . | . . . . . . . . . . . . . . . . . . . . . . . . . Parts Stolen . | . . . . . . . . . . . . . . . . . . . . . . . . . Parts Stripped . | . . . . . . . . . . . . . . . . . . . . . . . . . Power Chain Reactions 5 | . . . 4 . . . . . . . . . . . . . . 1 . . . . . . Missiles Intercepted . | . . . . . . . . . . . . . . . . . . . . . . . . . Alert | -11 -10 -10 -9 -9 -9 -8 -8 -8 -7 -7 -7 -7 -7 -7 -6 -6 -5 -5 -5 -5 -4 -4 -3 -2 ------- Run | Scr Mat Min Mat Min Exi Min Mat Gar Fac Was Fac Gar Fac Gar Fac Gar Fac Gar Fac Gar Fac Arm Res Res Peak Influence 1022 | 10 225 127 419 121 . 142 239 788 638 236 294 777 498 629 393 610 406 1022 536 594 352 261 191 530 Average Influence 279 | 2 67 25 211 121 . 63 91 571 533 220 196 525 344 290 203 345 155 466 187 364 94 76 49 101 Maximum Alert Level 3 | . 1 . 2 . . . 1 3 2 1 1 3 2 2 1 2 2 3 2 2 1 1 . 2 Low Security (%) 49 | 100 99 100 33 100 . 100 94 10 . . 51 6 25 36 50 34 72 42 66 9 77 96 100 88 Level 1 20 | . . . 55 . . . 5 10 1 100 48 18 13 30 49 21 26 1 26 53 22 3 . 1 Level 2 23 | . . . 11 . . . . 44 98 . . 48 60 33 . 43 . 22 7 37 . . . 9 Level 3 6 | . . . . . . . . 34 . . . 26 . . . . . 33 . . . . . . Level 4 . | . . . . . . . . . . . . . . . . . . . . . . . . . Level 5 . | . . . . . . . . . . . . . . . . . . . . . . . . . High Security . | . . . . . . . . . . . . . . . . . . . . . . . . . Max Security . | . . . . . . . . . . . . . . . . . . . . . . . . . Squads Dispatched 54 | . 4 . . . . . 5 . 8 . 5 . 4 . 2 . 4 . 7 . 2 4 5 4 Investigation 6 | . 3 . . . . . . . 1 . . . . . . . 1 . . . . . 1 . Extermination 13 | . . . . . . . . . 2 . 2 . 1 . . . . . 2 . . 2 2 2 Reinforcement 22 | . 1 . . . . . 2 . 1 . 3 . . . . . 3 . 5 . 2 2 2 1 Assault 2 | . . . . . . . . . 1 . . . . . . . . . . . . . . 1 Garrison 11 | . . . . . . . 3 . 3 . . . 3 . 2 . . . . . . . . . Intercept . | . . . . . . . . . . . . . . . . . . . . . . . . . Construction Impeded 5 | . . . . . . . . . 1 . 2 . . . . . . . 1 . . . . 1 Haulers Reinforced 1 | . . . . . . . . . . . 1 . . . . . . . . . . . . . Alert ID Control Effect 43 | . . . . . . . . . . . . . . . . . . . . 3 19 19 2 . Stealth | -11 -10 -10 -9 -9 -9 -8 -8 -8 -7 -7 -7 -7 -7 -7 -6 -6 -5 -5 -5 -5 -4 -4 -3 -2 --------- Run | Scr Mat Min Mat Min Exi Min Mat Gar Fac Was Fac Gar Fac Gar Fac Gar Fac Gar Fac Gar Fac Arm Res Res Distress Signals 23 | . 1 . 2 . . . 1 . 2 . 2 . 1 . . . 1 . 2 . 3 3 2 3 Communications Jammed . | . . . . . . . . . . . . . . . . . . . . . . . . . Distress Signals . | . . . . . . . . . . . . . . . . . . . . . . . . . Times Spotted 528 | . 23 3 18 . . 10 27 23 23 6 29 24 9 20 12 27 20 21 50 44 25 44 33 37 Peak Tracking Total 14 | . 4 3 6 . . 4 4 6 5 6 6 6 2 6 4 6 3 5 4 6 12 6 6 14 Tactical Retreats 40 | . 1 . . . . 2 2 2 2 1 1 2 . 3 1 . . 1 2 15 . 1 2 2 Traps | -11 -10 -10 -9 -9 -9 -8 -8 -8 -7 -7 -7 -7 -7 -7 -6 -6 -5 -5 -5 -5 -4 -4 -3 -2 ------- Run | Scr Mat Min Mat Min Exi Min Mat Gar Fac Was Fac Gar Fac Gar Fac Gar Fac Gar Fac Gar Fac Arm Res Res Traps Triggered 101 | . 4 . . . . . 2 11 2 . 2 10 7 5 . 13 1 5 9 17 1 8 1 3 Indirectly 7 | . . . . . . . . . . . . . . . . . . . . . . 7 . . Trap Hack Attempts . | . . . . . . . . . . . . . . . . . . . . . . . . . Triggered . | . . . . . . . . . . . . . . . . . . . . . . . . . Disarmed . | . . . . . . . . . . . . . . . . . . . . . . . . . Reprogrammed . | . . . . . . . . . . . . . . . . . . . . . . . . . Reused . | . . . . . . . . . . . . . . . . . . . . . . . . . Traps Extracted . | . . . . . . . . . . . . . . . . . . . . . . . . . Installed . | . . . . . . . . . . . . . . . . . . . . . . . . . Triggered 2 | . 1 . . . . . . . . . 1 . . . . . . . . . . . . . Exploded 1 | . . . . . . . . 1 . . . . . . . . . . . . . . . . Machines | -11 -10 -10 -9 -9 -9 -8 -8 -8 -7 -7 -7 -7 -7 -7 -6 -6 -5 -5 -5 -5 -4 -4 -3 -2 ---------- Run | Scr Mat Min Mat Min Exi Min Mat Gar Fac Was Fac Gar Fac Gar Fac Gar Fac Gar Fac Gar Fac Arm Res Res Machines Disabled 72 | . 1 . 5 . . . 3 2 4 . 6 3 . 5 . 4 2 7 8 4 . 13 2 3 Max in Single Turn 3 | . 1 . 1 . . . 1 1 2 . 3 1 . 1 . 1 1 1 2 1 . 1 1 2 Garrison Access 10 | . . . . . . . . . 1 . 1 . 1 . 2 . 1 . 1 . . . 1 2 Garrison Relay 20 | . . . . . . . . 2 . . . 3 . 3 . 4 . 4 . 4 . . . . Energy Cycler 1 | . . . . . . . . . . . . . . . . . . . . . . 1 . . Machines Sabotaged . | . . . . . . . . . . . . . . . . . . . . . . . . . Garrisons Compromised . | . . . . . . . . . . . . . . . . . . . . . . . . . Overloaded Fab Kills . | . . . . . . . . . . . . . . . . . . . . . . . . . Fab Network Shutdowns . | . . . . . . . . . . . . . . . . . . . . . . . . . Hacking | -11 -10 -10 -9 -9 -9 -8 -8 -8 -7 -7 -7 -7 -7 -7 -6 -6 -5 -5 -5 -5 -4 -4 -3 -2 --------- Run | Scr Mat Min Mat Min Exi Min Mat Gar Fac Was Fac Gar Fac Gar Fac Gar Fac Gar Fac Gar Fac Arm Res Res Machines Accessed 88 | . 6 . 3 . 5 . 10 . 6 . 8 . 8 . 8 . 9 . 11 . 2 5 3 4 Terminals 44 | . 5 . 3 . . . 6 . 2 . 5 . 3 . 2 . 4 . 6 . 1 4 1 2 Fabricators 1 | . . . . . . . . . . . 1 . . . . . . . . . . . . . Repair Stations 16 | . 1 . . . . . 1 . 3 . . . 2 . 1 . 3 . 3 . 1 . 1 . Recycling Units 4 | . . . . . . . 1 . . . . . 1 . 1 . . . . . . 1 . . Scanalyzers 3 | . . . . . . . 1 . . . . . . . 1 . . . . . . . . 1 Garrison Access 15 | . . . . . . . 1 . 1 . 2 . 2 . 3 . 2 . 2 . . . 1 1 Total Hacks 252 | . 20 . 9 . 49 . 30 . 13 . 12 . 23 . 19 . 18 . 23 . 4 14 8 10 Successful 168 | . 16 . 4 . 49 . 20 . 4 . 7 . 12 . 14 . 11 . 11 . 2 7 5 6 Failed 83 | . 4 . 5 . . . 10 . 9 . 5 . 11 . 5 . 6 . 12 . 2 7 3 4 Catastrophic 10 | . . . . . . . 2 . 1 . 2 . . . . . 1 . 2 . 1 1 . . Database Lockouts 1 | . . . . . . . . . . . . . . . . . 1 . . . . . . . Manual 108 | . 12 . 6 . 1 . 17 . 4 . 2 . 16 . 8 . 9 . 16 . 2 8 2 5 Terminals 135 | . 16 . 9 . . . 20 . 5 . 9 . 14 . 11 . 11 . 16 . 2 13 2 7 Fabricators 1 | . . . . . . . . . . . 1 . . . . . . . . . . . . . Repair Stations 37 | . 4 . . . . . 6 . 7 . . . 3 . 3 . 5 . 5 . 2 . 2 . Recycling Units 8 | . . . . . . . 2 . . . . . 4 . 1 . . . . . . 1 . . Scanalyzers 4 | . . . . . . . 1 . . . . . . . 1 . . . . . . . . 2 Garrison Access 18 | . . . . . . . 1 . 1 . 2 . 2 . 3 . 2 . 2 . . . 4 1 Terminal Hacks 86 | . 7 . 1 . 49 . 9 . . . 4 . 2 . 4 . 2 . 2 . . 4 . 2 Record 49 | . . . . . 48 . . . . . . . . . . . . . . . . . . 1 Prototype ID Bank 10 | . 2 . 1 . . . 4 . . . . . . . . . 2 . 1 . . . . . Open Door 1 | . . . . . . . . . . . . . . . . . . . . . . 1 . . Level Access Points 2 | . . . . . . . . . . . 1 . . . . . . . . . . 1 . . Branch Access Points 4 | . 1 . . . . . . . . . 1 . . . 1 . . . . . . . . 1 Emergency Access Points 2 | . 1 . . . . . . . . . . . . . . . . . . . . 1 . . Terminal Index 2 | . . . . . . . . . . . . . 1 . 1 . . . . . . . . . Garrison Index 1 | . . . . . . . . . . . . . . . 1 . . . . . . . . . Alert Level 1 | . . . . . . . 1 . . . . . . . . . . . . . . . . . Unreport Threat 5 | . . . . . . . 2 . . . . . 1 . 1 . . . 1 . . . . . Locate Traps 1 | . 1 . . . . . . . . . . . . . . . . . . . . . . . Recall Investigation 1 | . . . . . . . . . . . 1 . . . . . . . . . . . . . Recall Extermination 1 | . . . . . . . . . . . 1 . . . . . . . . . . . . . Recall Reinforcements 2 | . . . . . . . 2 . . . . . . . . . . . . . . . . . Hauler Manifests 1 | . 1 . . . . . . . . . . . . . . . . . . . . . . . Registered Components 1 | . 1 . . . . . . . . . . . . . . . . . . . . . . . Zone Layout 1 | . . . . . . . . . . . . . . . . . . . . . . 1 . . EX-Prototype ID Bank 1 | . . . . . 1 . . . . . . . . . . . . . . . . . . . Fabricator Hacks 1 | . . . . . . . . . . . 1 . . . . . . . . . . . . . Network Status 1 | . . . . . . . . . . . 1 . . . . . . . . . . . . . Repair Station Hacks 27 | . 4 . . . . . 6 . 2 . . . 1 . 2 . 4 . 4 . 2 . 2 . Scan Component 14 | . 2 . . . . . 3 . 1 . . . 1 . 1 . 2 . 2 . 1 . 1 . Repair 13 | . 2 . . . . . 3 . 1 . . . . . 1 . 2 . 2 . 1 . 1 . Recycling Unit Hacks . | . . . . . . . . . . . . . . . . . . . . . . . . . Scanalyzer 2 | . . . . . . . . . . . . . . . 1 . . . . . . . . 1 Insert Component 2 | . . . . . . . . . . . . . . . 1 . . . . . . . . 1 Garrison Access Hacks 16 | . . . . . . . 1 . 1 . 2 . 2 . 3 . 2 . 2 . . . 2 1 Unlock Access 6 | . . . . . . . 1 . . . 1 . 1 . 1 . 1 . 1 . . . . . Seal Access 9 | . . . . . . . . . 1 . 1 . 1 . 2 . 1 . 1 . . . 1 1 Coupler Status 1 | . . . . . . . . . . . . . . . . . . . . . . . 1 . Unauthorized Hacks 36 | . 5 . 3 . . . 4 . 1 . . . 7 . 4 . 3 . 3 . . 3 1 2 Terminals 31 | . 5 . 3 . . . 4 . 1 . . . 4 . 3 . 3 . 3 . . 3 . 2 Track 7 | . 3 . 1 . . . . . . . . . 1 . . . 1 . . . . . . 1 Assimilate 1 | . . . . . . . . . . . . . . . 1 . . . . . . . . . Botnet 17 | . 1 . 2 . . . 3 . 1 . . . 2 . 1 . 2 . 2 . . 2 . 1 Disrupt 1 | . . . . . . . 1 . . . . . . . . . . . . . . . . . Operators 5 | . 1 . . . . . . . . . . . 1 . 1 . . . 1 . . 1 . . Fabricators . | . . . . . . . . . . . . . . . . . . . . . . . . . Repair Stations . | . . . . . . . . . . . . . . . . . . . . . . . . . Recycling Units 4 | . . . . . . . . . . . . . 3 . 1 . . . . . . . . . Monitor 1 | . . . . . . . . . . . . . 1 . . . . . . . . . . . Recyclers 2 | . . . . . . . . . . . . . 1 . 1 . . . . . . . . . Mask 1 | . . . . . . . . . . . . . 1 . . . . . . . . . . . Scanalyzers . | . . . . . . . . . . . . . . . . . . . . . . . . . Garrison Access 1 | . . . . . . . . . . . . . . . . . . . . . . . 1 . Restock 1 | . . . . . . . . . . . . . . . . . . . . . . . 1 . Data Cores Recovered 3 | . 1 . 1 . . . . . . . . . . . . . . . . . . 1 . . Used 1 | . 1 . . . . . . . . . . . . . . . . . . . . . . . Hacking Detections 64 | . 6 . 3 . . . 7 . 5 . 6 . 4 . 5 . 6 . 9 . 2 5 3 3 Full Trace Events . | . . . . . . . . . . . . . . . . . . . . . . . . . Feedback Events . | . . . . . . . . . . . . . . . . . . . . . . . . . Feedback Blocked . | . . . . . . . . . . . . . . . . . . . . . . . . . Robot Schematics Acquired . | . . . . . . . . . . . . . . . . . . . . . . . . . Robots Built . | . . . . . . . . . . . . . . . . . . . . . . . . . Matter . | . . . . . . . . . . . . . . . . . . . . . . . . . Time . | . . . . . . . . . . . . . . . . . . . . . . . . . Total Robot Build Rating . | . . . . . . . . . . . . . . . . . . . . . . . . . Part Schematics Acquired . | . . . . . . . . . . . . . . . . . . . . . . . . . Parts Built . | . . . . . . . . . . . . . . . . . . . . . . . . . Matter . | . . . . . . . . . . . . . . . . . . . . . . . . . Time . | . . . . . . . . . . . . . . . . . . . . . . . . . Total Part Build Rating . | . . . . . . . . . . . . . . . . . . . . . . . . . Parts Repaired 13 | . 2 . . . . . 3 . 1 . . . . . 1 . 2 . 2 . 1 . 1 . Time 366 | . 52 . . . . . 84 . 16 . . . . . 22 . 60 . 66 . 22 . 44 . Parts Recycled . | . . . . . . . . . . . . . . . . . . . . . . . . . Recycled Matter . | . . . . . . . . . . . . . . . . . . . . . . . . . Retrieved Matter . | . . . . . . . . . . . . . . . . . . . . . . . . . Retrieved Components . | . . . . . . . . . . . . . . . . . . . . . . . . . Parts Scanalyzed . | . . . . . . . . . . . . . . . . . . . . . . . . . Part Schematics Acquired . | . . . . . . . . . . . . . . . . . . . . . . . . . Parts Damaged . | . . . . . . . . . . . . . . . . . . . . . . . . . Bothacking | -11 -10 -10 -9 -9 -9 -8 -8 -8 -7 -7 -7 -7 -7 -7 -6 -6 -5 -5 -5 -5 -4 -4 -3 -2 ------------ Run | Scr Mat Min Mat Min Exi Min Mat Gar Fac Was Fac Gar Fac Gar Fac Gar Fac Gar Fac Gar Fac Arm Res Res Used RIF Installer 6 | . . . . . . . . 1 . . . 1 . 1 . 1 . 1 . 1 . . . . Patrol Navigation 1 | . . . . . . . . . . . . . . 1 . . . . . . . . . . Alert ID Control 1 | . . . . . . . . . . . . . . . . . . . . 1 . . . . Structural Interface 1 | . . . . . . . . . . . . . . . . . . 1 . . . . . . Program Shield 1 | . . . . . . . . . . . . 1 . . . . . . . . . . . . Autoassimilate 1 | . . . . . . . . . . . . . . . . 1 . . . . . . . . Robots Hacked 126 | . . . . . . . . . . . 4 9 4 6 4 19 9 5 19 16 10 11 7 3 Non-combat 13 | . . . . . . . . . . . . . . . 3 . 2 . 3 1 1 3 . . Combat 113 | . . . . . . . . . . . 4 9 4 6 1 19 7 5 16 15 9 8 7 3 Autoassimilated 17 | . . . . . . . . . . . . . . . . 2 1 . 3 3 2 2 3 1 Robot Hacks Applied 117 | . . . . . . . . . . . 4 9 4 6 4 17 9 5 19 14 9 11 4 2 parse_system 1 | . . . . . . . . . . . . . . . 1 . . . . . . . . . no_distress 1 | . . . . . . . . . . . . . . . 1 . . . . . . . . . drop_inventory 1 | . . . . . . . . . . . . . . . . . 1 . . . . . . . purge_threat 12 | . . . . . . . . . . . . . . . . . 2 . 6 . 2 2 . . find_terminals 1 | . . . . . . . . . . . . . . . . . . . . . . 1 . . block_reporting 1 | . . . . . . . . . . . . . . . . . . . . . . 1 . . map_route 1 | . . . . . . . . . . . . . . . 1 . . . . . . . . . mark_security 1 | . . . . . . . . . . . . . . . . . . . . 1 . . . . scatter_targeting 1 | . . . . . . . . . . . . . . . . . . . . . 1 . . . overload_power 2 | . . . . . . . . . . . . . . . . . . . . 1 . 1 . . amplify_resonance 15 | . . . . . . . . . . . 3 2 . 1 . 1 . 2 1 1 2 . 2 . reboot_system 16 | . . . . . . . . . . . . 3 2 3 . 4 . . 1 2 . 1 . . go_dormant 1 | . . . . . . . . . . . . . . . . . . . . . . . . 1 overwrite_iff 20 | . . . . . . . . . . . . . . . 1 3 2 . 4 3 2 3 2 . streamctrl_high 1 | . . . . . . . . . . . . . . . . . . . 1 . . . . . formatsys_high 42 | . . . . . . . . . . . 1 4 2 2 . 9 4 3 6 6 2 2 . 1 Relay Couplers Released 95 | . . . . . . . . 10 . . 4 12 4 13 . 15 3 18 . 15 . . . 1 Machine Destruction 87 | . . . . . . . . 10 . . . 12 . 13 . 15 3 18 . 15 . . . 1 Programmers 8 | . . . . . . . . . . . 4 . 4 . . . . . . . . . . . Attached 48 | . . . . . . . . . . . 2 4 2 4 1 7 4 6 7 4 5 2 . . Robots Rewired 21 | . . . . . . . . . . . . . . . . . . 6 . 7 1 6 . 1 Allies Hacked 3 | . . . . . . . . . . . . . . . . . . . 3 . . . . . Hacks Repelled . | . . . . . . . . . . . . . . . . . . . . . . . . . Allies | -11 -10 -10 -9 -9 -9 -8 -8 -8 -7 -7 -7 -7 -7 -7 -6 -6 -5 -5 -5 -5 -4 -4 -3 -2 -------- Run | Scr Mat Min Mat Min Exi Min Mat Gar Fac Was Fac Gar Fac Gar Fac Gar Fac Gar Fac Gar Fac Arm Res Res Total Allies 105 | . . 3 . . . . . . . . 1 4 2 2 2 14 7 9 14 19 7 13 5 3 Largest Group 14 | . . 3 3 . . . . . . . . 4 5 2 4 10 6 7 8 14 14 9 2 1 Highest-Rated Group 559 | . . 40 40 . . . . . . . . 112 144 53 71 277 195 323 386 559 559 377 94 64 Highest-Rated Ally 64 | . . 16 16 . . . . . . . . 32 32 32 29 41 49 49 49 49 64 64 47 64 Total Orders 75 | . . . . . . . . . . . . 14 . 8 1 15 2 11 6 16 2 . . . STAY 40 | . . . . . . . . . . . . 8 . 4 . 8 1 7 2 9 1 . . . GOTO 6 | . . . . . . . . . . . . . . . 1 1 . 1 1 2 . . . . FOLLOW 29 | . . . . . . . . . . . . 6 . 4 . 6 1 3 3 5 1 . . . Ally Attacks 813 | . . 3 37 . . . . . . . . 29 22 17 24 55 54 81 100 82 118 175 11 5 Total Damage 22541 | . . 33 531 . . . . . . . . 888 781 441 356 1073 1458 3145 3261 1523 3250 5356 300 145 Kills 155 | . . 1 8 . . . . . . . . 8 7 4 2 7 10 20 25 13 24 24 2 . Allies Corrupted 3 | . . . . . . . . . . . . . . . . . . . . . . 2 . 1 Allies Melted . | . . . . . . . . . . . . . . . . . . . . . . . . . Intel | -11 -10 -10 -9 -9 -9 -8 -8 -8 -7 -7 -7 -7 -7 -7 -6 -6 -5 -5 -5 -5 -4 -4 -3 -2 ------- Run | Scr Mat Min Mat Min Exi Min Mat Gar Fac Was Fac Gar Fac Gar Fac Gar Fac Gar Fac Gar Fac Arm Res Res Robot Analysis Total . | . . . . . . . . . . . . . . . . . . . . . . . . . Derelict Logs Recovered 1 | . . 1 . . . . . . . . . . . . . . . . . . . . . . Drone Launches . | . . . . . . . . . . . . . . . . . . . . . . . . . Drone Recoveries . | . . . . . . . . . . . . . . . . . . . . . . . . . Exploration | -11 -10 -10 -9 -9 -9 -8 -8 -8 -7 -7 -7 -7 -7 -7 -6 -6 -5 -5 -5 -5 -4 -4 -3 -2 ------------- Run | Scr Mat Min Mat Min Exi Min Mat Gar Fac Was Fac Gar Fac Gar Fac Gar Fac Gar Fac Gar Fac Arm Res Res Turns Passed 35722 | 125 1293 806 744 63 586 698 1920 1565 1117 172 2247 1995 1102 3898 962 2290 983 3853 2458 3066 573 1136 1116 954 Spaces Moved 19810 | 79 559 511 398 43 389 330 916 782 614 162 1320 1269 875 1023 735 1437 696 1657 1739 1904 395 748 626 603 Core 10 | 10 . . . . . . . . . . . . . . . . . . . . . . . . Treads 1091 | . . . . . . . . 510 200 . 381 . . . . . . . . . . . . . Legs 3428 | 69 559 511 398 43 389 330 916 213 . . . . . . . . . . . . . . . . Wheels 15281 | . . . . . . . . 59 414 162 939 1269 875 1023 735 1437 696 1657 1739 1904 395 748 626 603 Hover . | . . . . . . . . . . . . . . . . . . . . . . . . . Flight . | . . . . . . . . . . . . . . . . . . . . . . . . . Fastest Speed 50 | 50 120 150 150 150 150 150 120 130 103 100 100 100 105 105 105 105 103 102 102 103 103 103 103 100 Average Speed 116 | 111 126 150 150 150 150 151 150 164 133 101 133 104 105 109 105 105 105 105 102 104 107 104 107 107 Slowest Speed 220 | 120 150 150 150 150 150 210 180 200 220 103 200 120 105 115 115 115 120 125 125 106 113 113 120 130 Overloaded Moves . | . . . . . . . . . . . . . . . . . . . . . . . . . Propulsion Burnouts . | . . . . . . . . . . . . . . . . . . . . . . . . . Robots Hopped . | . . . . . . . . . . . . . . . . . . . . . . . . . Cave-ins Triggered 3 | . . . . . . . . . . . . 1 . . 1 . . . 1 . . . . . Exploration Rate (%) 50 | 4 90 96 34 11 90 37 58 73 20 82 44 73 21 63 24 85 16 98 51 95 11 51 16 19 Regions Visited 24 Branch Regions 5 Pre-discovered Areas 1 | . . . . . 1 . . . . . . . . . . . . . . . . . . . Known Exits Taken 8 | . 1 . . . . . 1 . . . 1 . 1 . 1 . 1 . 1 . . 1 . . Unknown Exits Taken 8 | 1 . 1 1 1 1 1 . . . . . . . . . . . . . . 1 . 1 . Scrap Searched 3 | . . 2 . . . 1 . . . . . . . . . . . . . . . . . . Spaces Dug 116 | . . . . . . . 2 . 3 . 7 2 3 . 13 8 9 5 27 . 4 4 14 15 Terrain Destroyed 641 | . 4 . 10 . . 35 23 7 71 . 79 7 6 19 13 11 11 12 36 4 6 131 33 123 Melee 34 | . . . . . . . 2 . 2 . 6 . . . . . . . . . . 2 7 15 Projectile 123 | . . . . . . . 2 . 2 . 1 5 6 2 13 3 11 . 30 4 6 7 26 5 AOE 484 | . 4 . 10 . . 35 19 7 67 . 72 2 . 17 . 8 . 12 6 . . 122 . 103 Actions | -11 -10 -10 -9 -9 -9 -8 -8 -8 -7 -7 -7 -7 -7 -7 -6 -6 -5 -5 -5 -5 -4 -4 -3 -2 --------- Run | Scr Mat Min Mat Min Exi Min Mat Gar Fac Was Fac Gar Fac Gar Fac Gar Fac Gar Fac Gar Fac Arm Res Res Total 30813 | 103 1054 535 507 42 393 483 1356 970 802 169 1645 1846 1041 3719 888 2173 907 3668 2334 2865 515 1030 951 817 Wait 8285 | 5 415 17 43 . . 108 303 59 83 8 112 402 101 2538 104 545 142 1768 426 645 51 104 194 112 Move 19789 | 78 558 510 397 42 388 329 915 780 614 161 1320 1267 875 1021 735 1436 696 1656 1739 1903 394 747 625 603 Hop . | . . . . . . . . . . . . . . . . . . . . . . . . . Pick Up 237 | 7 8 . 11 . 3 6 22 9 13 . 20 16 6 11 3 15 4 22 7 14 7 9 17 7 Fast Attach 113 | 6 6 . 4 . . 1 8 5 9 . 13 1 3 2 2 . 5 9 19 4 4 3 6 3 Attach 111 | 1 2 . 1 . . 3 7 5 2 . 13 3 1 2 1 9 6 6 8 7 5 5 14 10 Detach 53 | 1 2 . 1 . . 1 2 4 3 . 9 1 1 1 . 4 1 4 6 3 3 2 3 1 Swap 198 | . 6 . 6 . . 6 15 6 6 . 25 19 5 15 3 6 6 12 13 12 6 13 8 10 Drop 217 | . 9 . 13 . 2 5 23 10 12 . 22 17 7 9 4 9 4 20 9 19 7 14 1 1 Fire 1274 | 5 48 8 31 . . 24 59 52 58 . 95 64 18 80 35 61 43 101 106 121 38 102 76 49 Melee 38 | . . . . . . . 2 . 2 . 6 . . . . . . . . . . 2 7 19 Ram 3 | . . . . . . . . . . . . . . . 1 . . . . . . . . 2 Kick . | . . . . . . . . . . . . . . . . . . . . . . . . . Crush . | . . . . . . . . . . . . . . . . . . . . . . . . . Escape Stasis 450 | . . . . . . . . 40 . . 10 56 24 40 . 88 . 32 . 134 . 26 . . Rewire 45 | . . . . . . . . . . . . . . . . . . 38 1 3 . 3 . . Trap . | . . . . . . . . . . . . . . . . . . . . . . . . . Miscellaneous . | . . . . . . . . . . . . . . . . . . . . . . . . . Route ------- -11/Scrapyard -10/Materials (discovered 3 exits: *Mat x2 / *Min) -10/Mines (discovered 2 exits: *Mat x2) -9/Materials -9/Mines -9/Exiles -8/Mines -8/Materials (discovered 4 exits: *Fac x2 / [*Sto] / Gar) -8/Garrison (discovered 2 exits: *Fac x2) -7/Factory -7/Waste -7/Factory (discovered 7 exits: *Fac x4 / Low x2 / Gar) -7/Garrison (discovered 2 exits: *Fac x2) -7/Factory (discovered 3 exits: *Fac / *Low / Gar) -7/Garrison (discovered 2 exits: *Fac x2) -6/Factory (discovered 6 exits: *Fac / Low x2 / Ext x2 / Gar) -6/Garrison (discovered 3 exits: *Fac x3) -5/Factory (discovered 2 exits: [*Upp] / Gar) -5/Garrison (discovered 3 exits: *Fac x3) -5/Factory (discovered 6 exits: *Fac x3 / [*Upp x2] / Gar) -5/Garrison (discovered 3 exits: *Fac x3) -4/Factory -4/Armory (discovered 2 exits: *Res x2) -3/Research -2/Research (discovered 2 exits: Tes x2) History --------- Turn | Location | Event 11 | -11/Scrapyard | Discovered new exit (range 15) 126 | -11/Scrapyard | Entered Materials 136 | -10/Materials | Identified exit to Mines 309 | -10/Materials | Build established: Mutant 480 | -10/Materials | Repaired Aluminum Leg 507 | -10/Materials | Repaired Med. Laser 585 | -10/Materials | Discovered new exit (range 12) 1165 | -10/Materials | Discovered new exit (range 10) 1419 | -10/Materials | Entered Mines 1427 | -10/Mines | Assisted by bots powering up and referring to "LRC-V3" 1457 | -10/Mines | Learned Materials trap positions 1575 | -10/Mines | Discovered new exit (range 6) 1811 | -10/Mines | Discovered new exit (range 10) 1887 | -10/Mines | Assisted by bots powering up and referring to "LRC-V3" 2225 | -10/Mines | Entered Materials 2225 | -9/Materials | Accompanied by 3 allies 2225 | -9/Materials | Evolved 2 slots: Utility x2 2226 | -9/Materials | Loaded intel: 8 trap records 2509 | -9/Materials | Discovered new exit (range 15) 2969 | -9/Materials | Entered Mines 2991 | -9/Mines | Met a Derelict bent on vengeance 3025 | -9/Mines | Deemed a non-threat by the Exiles lab entrance 3025 | -9/Mines | Discovered new exit (range 5) 3032 | -9/Mines | Entered Exiles 3071 | -9/Exiles | Met 8R-AWN 3096 | -9/Exiles | Met EX-HEX 3164 | -9/Exiles | Met EX-DEC 3195 | -9/Exiles | Visited The Gauntlet 3369 | -9/Exiles | Met EX-BIN 3390 | -9/Exiles | Aligned with FarCom system 3392 | -9/Exiles | Given EX-Vault access code 3450 | -9/Exiles | Opened EX-Vault 3460 | -9/Exiles | Found Gui. Plasma Cannon 3497 | -9/Exiles | Warned to stay clear of 0b10 Research branches 3548 | -9/Exiles | Learned location of Zion (-6) 3596 | -9/Exiles | Discovered new exit (range 14) 3618 | -9/Exiles | Left Exiles lab with Gui. Plasma Cannon 3618 | -9/Exiles | Entered Mines 4227 | -8/Mines | Discovered new exit (range 5) 4316 | -8/Mines | Entered Materials 4316 | -8/Materials | Evolved 2 slots: Propulsion x1, Utility x1 4610 | -8/Materials | Build established: Scavenger-Mutant 4633 | -8/Materials | Repaired Lrg. Storage Unit 4692 | -8/Materials | Repaired Aluminum Leg 4734 | -8/Materials | Repaired Hrd. Light Armor Plating 4847 | -8/Materials | Discovered new exit (range 11) 5294 | -8/Materials | Garrison activated, responded to threat 5338 | -8/Materials | Identified exit to Garrison 5414 | -8/Materials | Discovered new exit (range 8) 5682 | -8/Materials | Discovered new exit (range 15) 6236 | -8/Materials | Entered Garrison 6392 | -8/Garrison | Triggered checkpoint 6506 | -8/Garrison | Discovered new exit (range 12) 6558 | -8/Garrison | Triggered checkpoint 6582 | -8/Garrison | Triggered checkpoint 6672 | -8/Garrison | Discovered new exit (range 9) 6702 | -8/Garrison | Installed Relay Interface Framework 6762 | -8/Garrison | Triggered checkpoint 6803 | -8/Garrison | Garrison Relay disabled 7142 | -8/Garrison | Triggered checkpoint 7280 | -8/Garrison | Garrison Relay disabled 7330 | -8/Garrison | Found Powered Armor 7350 | -8/Garrison | Found Powered Armor 7801 | -8/Garrison | Entered Factory 7801 | -7/Factory | Evolved 2 slots: Utility x2 7838 | -7/Factory | Repaired Cooling System 8137 | -7/Factory | Garrison activated, responded to threat 8201 | -7/Factory | First assault squad dispatched 8299 | -7/Factory | Lost 3 parts (2n1w) 8656 | -7/Factory | Build established: Bothacker-Mutant 8918 | -7/Factory | Sucked down chute 8918 | -7/Factory | Entered Waste 8965 | -7/Waste | Spotted C-40 Crusher 8971 | -7/Waste | Spotted C-40 Crusher 8984 | -7/Waste | Spotted C-40 Crusher 8986 | -7/Waste | Spotted C-40 Crusher 9004 | -7/Waste | Spotted C-40 Crusher 9016 | -7/Waste | Crushed by Compactor (1 part destroyed, 2 dropped) 9046 | -7/Waste | Spotted C-40 Crusher 9081 | -7/Waste | Discovered new exit (range 10) 9090 | -7/Waste | Entered Factory 9429 | -7/Factory | Identified exit to Factory 9691 | -7/Factory | Lost 3 parts (1n2w) 9876 | -7/Factory | Identified exit to Lower Caves 11337 | -7/Factory | Identified exit to Garrison 11337 | -7/Factory | Entered Garrison 11342 | -7/Garrison | Expanded RIF knowledge: Program Shield 11429 | -7/Garrison | Spotted B-75 Beast 11436 | -7/Garrison | Core integrity fell below 50% 11441 | -7/Garrison | Destroyed B-75 Beast 11651 | -7/Garrison | Build established: Hauler-Mutant 11818 | -7/Garrison | Triggered checkpoint 11832 | -7/Garrison | Garrison Relay disabled 11910 | -7/Garrison | Triggered checkpoint 12113 | -7/Garrison | Build established: Bothacker-Mutant 12114 | -7/Garrison | Triggered checkpoint 12368 | -7/Garrison | Discovered new exit (range 8) 12412 | -7/Garrison | Triggered checkpoint 12495 | -7/Garrison | Garrison Relay disabled 12646 | -7/Garrison | Discovered new exit (range 10) 12814 | -7/Garrison | Crushed by falling debris 12834 | -7/Garrison | Triggered checkpoint 12839 | -7/Garrison | Garrison Relay disabled 13332 | -7/Garrison | Entered Factory 13332 | -7/Factory | Accompanied by 4 allies 13536 | -7/Factory | Discovered exit to Factory (range 8) 13619 | -7/Factory | Discovered exit to Lower Caves (range 7) 13664 | -7/Factory | Garrison activated, responded to threat 14428 | -7/Factory | Identified exit to Garrison 14434 | -7/Factory | Entered Garrison 14434 | -7/Garrison | Accompanied by 2 allies 15801 | -7/Garrison | Triggered checkpoint 15863 | -7/Garrison | Garrison Relay disabled 15980 | -7/Garrison | Triggered checkpoint 16026 | -7/Garrison | Triggered checkpoint 17124 | -7/Garrison | Discovered exit to Factory (range 14) 17345 | -7/Garrison | Discovered exit to Factory (range 11) 17364 | -7/Garrison | Expanded RIF knowledge: Patrol Navigation 17394 | -7/Garrison | Triggered checkpoint 17647 | -7/Garrison | Garrison Relay disabled 18022 | -7/Garrison | Triggered checkpoint 18111 | -7/Garrison | Garrison Relay disabled 18332 | -7/Garrison | Entered Factory 18332 | -6/Factory | Accompanied by 2 allies 18332 | -6/Factory | Evolved 2 slots: Utility x2 18558 | -6/Factory | Discovered new exit (range 15) 18838 | -6/Factory | Identified exit to Lower Caves 18838 | -6/Factory | Identified exit to Extension 18985 | -6/Factory | Repaired Remote Datajack 19188 | -6/Factory | Garrison activated, responded to threat 19250 | -6/Factory | Crushed by falling debris 19294 | -6/Factory | Identified exit to Garrison 19294 | -6/Factory | Entered Garrison 19351 | -6/Garrison | Triggered checkpoint 19371 | -6/Garrison | Garrison Relay disabled 19930 | -6/Garrison | Triggered checkpoint 20030 | -6/Garrison | Discovered new exit (range 7) 20074 | -6/Garrison | Triggered checkpoint 20165 | -6/Garrison | Garrison Relay disabled 20248 | -6/Garrison | Triggered checkpoint 20417 | -6/Garrison | Discovered new exit (range 8) 20431 | -6/Garrison | Expanded RIF knowledge: Autoassimilate 20536 | -6/Garrison | Triggered checkpoint 20590 | -6/Garrison | Triggered checkpoint 20667 | -6/Garrison | Garrison Relay disabled 20916 | -6/Garrison | Discovered new exit (range 12) 20958 | -6/Garrison | Build established: Botlord-Mutant 21026 | -6/Garrison | Triggered checkpoint 21116 | -6/Garrison | Garrison Relay disabled 21584 | -6/Garrison | Entered Factory 21584 | -5/Factory | Accompanied by 6 allies 21584 | -5/Factory | Evolved 2 slots: Propulsion x1, Utility x1 21978 | -5/Factory | Repaired Arm. Huge Wheel 22095 | -5/Factory | Spotted B-75 Beast 22142 | -5/Factory | Repaired Arm. Wheel 22360 | -5/Factory | System corruption reached 10% 22390 | -5/Factory | Lost 4 parts (1n2u1w) 22406 | -5/Factory | Discovered new exit (range 6) 22486 | -5/Factory | Central database locked down 22567 | -5/Factory | Identified exit to Garrison 22567 | -5/Factory | Entered Garrison 22567 | -5/Garrison | Accompanied by 1 ally 24137 | -5/Garrison | Triggered checkpoint 24205 | -5/Garrison | Triggered checkpoint 24265 | -5/Garrison | Triggered checkpoint 24332 | -5/Garrison | Garrison Relay disabled 24921 | -5/Garrison | Discovered new exit (range 12) 24938 | -5/Garrison | Triggered checkpoint 25000 | -5/Garrison | Garrison Relay disabled 25130 | -5/Garrison | Triggered checkpoint 25172 | -5/Garrison | Triggered checkpoint 25252 | -5/Garrison | Discovered new exit (range 10) 25268 | -5/Garrison | Expanded RIF knowledge: Structural Interface 25338 | -5/Garrison | Triggered checkpoint 25356 | -5/Garrison | Garrison Relay disabled 25554 | -5/Garrison | Garrison Relay disabled 25632 | -5/Garrison | Discovered new exit (range 13) 25839 | -5/Garrison | Identified exit to Factory 26420 | -5/Garrison | Entered Factory 26420 | -5/Factory | Accompanied by 6 allies 26667 | -5/Factory | Discovered new exit (range 9) 26878 | -5/Factory | Spotted B-75 Beast 26893 | -5/Factory | Allies destroyed B-75 Beast 26913 | -5/Factory | Discovered new exit (range 12) 27278 | -5/Factory | Repaired Imp. Medium Armor Plating 27644 | -5/Factory | Discovered new exit (range 15) 27896 | -5/Factory | Crushed by falling debris 27927 | -5/Factory | Lost 3 parts (2n1u) 28061 | -5/Factory | Found Powered Armor 28102 | -5/Factory | Discovered new exit (range 14) 28396 | -5/Factory | Repaired Powered Armor 28848 | -5/Factory | Discovered new exit (range 4) 28874 | -5/Factory | Identified exit to Garrison 28878 | -5/Factory | Entered Garrison 28878 | -5/Garrison | Accompanied by 3 allies 28924 | -5/Garrison | Triggered checkpoint 29314 | -5/Garrison | Garrison Relay disabled 29674 | -5/Garrison | Triggered checkpoint 29990 | -5/Garrison | Garrison Relay disabled 30027 | -5/Garrison | Discovered new exit (range 8) 30402 | -5/Garrison | Triggered checkpoint 30456 | -5/Garrison | Discovered new exit (range 5) 30466 | -5/Garrison | Expanded RIF knowledge: Alert ID Control 30580 | -5/Garrison | Triggered checkpoint 30593 | -5/Garrison | Garrison Relay disabled 31166 | -5/Garrison | Triggered checkpoint 31256 | -5/Garrison | Discovered new exit (range 10) 31768 | -5/Garrison | Triggered checkpoint 31797 | -5/Garrison | Garrison Relay disabled 31944 | -5/Garrison | Entered Factory 31944 | -4/Factory | Accompanied by 14 allies 31944 | -4/Factory | Evolved 2 slots: Utility x2 31961 | -4/Factory | Found Quantum Capacitor 32033 | -4/Factory | Repaired Powered Armor 32395 | -4/Factory | Discovered new exit (range 16) 32517 | -4/Factory | Entered Armory 32517 | -4/Armory | Accompanied by 7 allies 32609 | -4/Armory | Energy Cycler disabled 32642 | -4/Armory | Found Unknown Launcher 32642 | -4/Armory | Identified Gamma Bomb Array 32652 | -4/Armory | Found Fusion Bomb Launcher 32932 | -4/Armory | Identified exit to Research 33491 | -4/Armory | Found Fusion Bomb Launcher 33493 | -4/Armory | Found Fusion Bomb Launcher 33653 | -4/Armory | Entered Research 33653 | -3/Research | Evolved 2 slots: Utility x2 33718 | -3/Research | Build established: Bothacker-Mutant 33785 | -3/Research | Repaired Arm. Huge Wheel 34406 | -3/Research | System corruption reached 10% 34445 | -3/Research | Lost 3 parts (1p1u1w) 34507 | -3/Research | Lost 3 parts (2u1w) 34552 | -3/Research | Lost 4 parts (1p1n1u1w) 34641 | -3/Research | Found Prototype Slashing Weapon 34643 | -3/Research | Found Prototype Slashing Weapon 34645 | -3/Research | Found Prototype Slashing Weapon 34747 | -3/Research | Build established: Scavenger-Mutant 34763 | -3/Research | Discovered new exit (range 3) 34769 | -3/Research | Entered another Research area 34769 | -2/Research | Evolved 2 slots: Utility x2 35090 | -2/Research | Identified Nanosword (x3) 35519 | -2/Research | Spotted B-90 Cyclops 35568 | -2/Research | Identified exit to Testing 35623 | -2/Research | System corruption reached 10% 35658 | -2/Research | Destroyed 10 combat bots 35709 | -2/Research | Core integrity fell below 50% 35721 | -2/Research | Core integrity fell below 20% 35723 | -2/Research | Destroyed by H-88 Terminator with Heavy Machine Gun Last Messages --------------- 35710_ K-01 Serf cleans the Reaction Chamber. 35711_ Slammed into S-43 Plague. 35711_ Destabilizing: System corrupted (+2). 35712_ Penetrated by Slug. 35712_ Com. Wheel destroyed. 35712_ Slug penetrates S-43 Plague. 35713_ K-01 Serf cleans the Reaction Chamber. 35713_ Slug penetrates Wall. 35715_ Lrg. Storage Unit destroyed. 35716_ Penetrated by Slug. 35716_ Slug penetrates Reaction Chamber. 35718_ Penetrated by Slug. 35718_ S-43 Plague suffers critical hit. 35719_ K-01 Serf cleans the Reaction Chamber. 35720_ Penetrated by Slug. 35723_ Y-72 Warden destroyed. 35723_ Slug penetrates Wall. 35723_ Penetrated by Slug. [Achievement: Collector] [Achievement: Overachiever] Map ----- +----------------------------------------------------+ | ?????????????????????????????????????????????????? | | ?????????????????????????????????????????????????? | | ?????????????????????????????????????????????????? | | ?????????????????????????????????????????????????? | | ?????????????????????????????????????????????????? | | ?????????????????????????????????????????????????? | | ?????????????????????????????????????????????????? | | ????????????????????????????w????????????????????? | | ?????????????????????????????????????????????????? | | ?????????????????????????????????????????????????? | | ?????????????????????????????????????????????????? | | ?????????????????????????????????????????????????? | | ?????????????????????????????????????????????????? | | ?????????????????????????????????????????????????? | | ?????????????????????????????????????????????????? | | ?????????????????????????????????????????????????? | | ?????????????????????????????????????????????????? | | ???????Y?????????????????????????????????????????? | | ?????????????????????????????????????????????????? | | ??????????????????#??????????????????????????????? | | ??????????????????# ???######????????????????????? | | ???????????????????? ### #####????????????????? | | ????????????????????? !A[ ???????s?k???????? | | ?????????????????????? k]|%= ???????????????????? | | ???????????????????????#*/s[?????????????????????? | | ????????????????????????#@#??????????????????????? | | ????????????????????????#[#??????????????????????? | | ????????????????????????#!#??????????????????????? | | ????????????????????????#!#??????????????????????? | | ????????????????????????#|#??????????????????????? | | ??????????????????#######h######?????????????????? | | ??????????######### [ #?????????????##### | | ??????????# # h ###############! | | ??????????# # !! """ ## """T""" + | | ??????????# / ! s""" ## """ """ # | | ??????????# # p """ ## # | | ??????????# # ## # | | ??????????# # ## " # | | ??????????# # """ """ ## # | | ??????????#= # """sk""" ## # | | ??????????# # """ R""" ## # | | ??????????# # # % !! | | ??????????# # hk ## | | ?#+#########+###+########s####### # | | / k # | | ############A# # | | #???# # #% w | | =%! #???# %! u | | ## #################+############# %* B | | ?# ?????????????????# = %/ u RuB | +----------------------------------------------------+ Best States ------------- Heat Dissipation 106 Coolant Potential 100 Energy Generation 25 Energy Capacity 350 Matter Stores 310 Matter Capacity 400 Sight Range 22 Terrain Scan Range 20 Terrain Scan Density 10 Armor Coverage 1075 Propulsion Shielding 66 Phase Shifting 10 Evasion (%) 50 Targeting Accuracy 8 Melee Accuracy 6 Target Analysis 8 Recoil Reduction 3 Energy Filtering 50 Offensive Hacking 10 Defensive Hacking 10 Item Schematics ----------------- None Robot Schematics ------------------ None Fabricated ------------ Nothing Alien Tech Used ----------------- None Achievements -------------- Collector Dramatic Entrance Overachiever Challenges ------------ None Game ------ Seed CoolantComponentThrower Manual? 0 Play Time 06:15:15 Cumulative 130.5 hours Start 2020.06.06 @ 16:10:35 End 2020.06.07 @ 14:10:27 Sessions 5 Manual Loads 0 Difficulty Rogue Special Mode None Game No. 73 Rogue 72 Adventurer 1 Explorer 0 Win Type - Total 3 Types 2/0/0/1/0/0/0 Lore% 67 Gallery% 75 Achievement% 50 Wizard Run 0 Options --------- ASCII 1 Keyboard 1 Movement Numpad Keybinds 0 Fullscreen 2 Font 24/Smallcaps Map View 76x50 Tactical HUD 1 Map Filters NONE Filters NONE Steam 1 RUN: 79a14114-ae46-4c47-ad72-a363c521c407